bitfinex/quotes_BTCUSD_20250408
["timestamp","ask_amount","ask_price","bid_price","bid_amount"]
[1744121248633,0.75193625,79926.0,79925.0,1e-08]
[1744121249574,0.76993625,79926.0,79925.0,1e-08]
[1744121250693,0.88429276,79926.0,79925.0,1e-08]
[1744121250845,0.88429276,79926.0,79912.0,0.0001687]
[1744121250846,0.602785,79913.0,79912.0,0.0001687]
[1744121251048,0.602785,79913.0,79912.0,0.00029377]
[1744121251246,0.62572061,79913.0,79912.0,0.00029377]
[1744121251744,0.62572061,79913.0,79909.0,0.0003366]
[1744121251745,0.602795,79910.0,79909.0,3.7e-07]
[1744121251979,0.75198925,79910.0,79909.0,3.7e-07]
[1744121252202,0.41198925,79910.0,79909.0,3.7e-07]
[1744121252965,0.262821,79902.0,79901.0,0.004]
[1744121253209,0.38907964,79902.0,79901.0,0.004]
[1744121253454,0.40080886,79902.0,79901.0,0.004]
[1744121253695,0.42374447,79902.0,79901.0,0.004]
[1744121254147,0.262827,79900.0,79899.0,7e-07]
[1744121254351,0.38908564,79900.0,79899.0,7e-07]
[1744121254578,0.41202125,79900.0,79899.0,7e-07]
[1744121254788,0.26289,79881.0,79880.0,9e-07]
[1744121255040,0.26289,79881.0,79880.0,0.00012602]
[1744121255041,0.38914864,79881.0,79880.0,0.00012602]
[1744121255259,0.41208425,79881.0,79880.0,0.00012602]
[1744121256281,0.41208425,79881.0,79880.0,1e-08]
[1744121256644,0.14919425,79881.0,79880.0,1e-08]
[1744121256849,0.02293561,79881.0,79880.0,0.26289301]
[1744121257057,0.02293561,79881.0,79880.0,0.43835165]
[1744121257247,0.02693561,79881.0,79880.0,0.43835165]
[1744121257658,0.02693561,79881.0,79880.0,0.04920001]
[1744121257861,0.02493561,79881.0,79880.0,0.04920001]
[1744121258086,0.013518,79881.0,79880.0,1e-08]
[1744121258492,0.001,79881.0,79880.0,0.01251801]
[1744121258703,0.28582561,79881.0,79880.0,1e-08]
[1744121259303,0.28582561,79881.0,79880.0,0.00100001]
[1744121259503,0.26289,79881.0,79880.0,1e-08]
[1744121259862,0.26489,79881.0,79880.0,1e-08]
[1744121260069,0.262907,79876.0,79875.0,1e-08]
[1744121260305,0.38916564,79876.0,79875.0,1e-08]
[1744121260450,0.41222696,79876.0,79875.0,1e-08]
[1744121260663,0.26292,79872.0,79871.0,0.00396001]
[1744121260867,0.41223996,79872.0,79871.0,1e-08]
[1744121261909,0.262943,79865.0,79864.0,3.1e-07]
[1744121262116,0.262952,79862.0,79861.0,6.1e-07]
[1744121262366,0.38921064,79862.0,79861.0,6.1e-07]
[1744121263352,0.39421064,79862.0,79861.0,6.1e-07]
[1744121264215,0.39921064,79862.0,79861.0,6.1e-07]
[1744121265490,0.262986,79852.0,79851.0,0.0001683]
[1744121265700,0.38924464,79852.0,79851.0,0.00058554]
[1744121266303,0.262986,79852.0,79851.0,0.00058554]
[1744121266877,0.012521,79861.0,79851.0,0.00058554]
[1744121267081,0.001,79852.0,79851.0,0.01310854]
[1744121267232,0.001,79852.0,79851.0,0.05796215]
[1744121268558,0.05,79894.0,79851.0,0.05796215]
[1744121268559,0.250361,79885.0,79875.0,0.250389]
[1744121268758,0.25038,79879.0,79871.0,0.250403]
[1744121269105,0.250381,79878.0,79871.0,0.250402]
[1744121269252,0.250388,79877.0,79873.0,0.250396]
[1744121269462,0.250391,79875.0,79871.0,0.262922]
[1744121269661,0.250396,79874.0,79871.0,0.250403]
[1744121269867,0.250385,79877.0,79872.0,0.01252]
[1744121270277,0.251382,79878.0,79875.0,0.25039]
[1744121270494,0.250385,79877.0,79873.0,0.262915]
[1744121270700,0.001,79878.0,79877.0,0.109319]
[1744121270900,0.001,79878.0,79877.0,1.24450219]
[1744121271102,0.01154132,79921.0,79920.0,0.25025]
[1744121271304,0.262715,79935.0,79928.0,0.012511]
[1744121271456,0.000338,79945.0,79928.0,0.262736]
[1744121271658,0.0041242,79929.0,79925.0,0.012511]
[1744121271884,0.0041242,79929.0,79928.0,0.262736]
[1744121272492,0.0121242,79929.0,79928.0,0.40353549]
[1744121272691,0.000338,79945.0,79944.0,0.262683]
[1744121272931,0.10938525,79978.0,79958.0,0.262637]
[1744121272932,0.012503,79976.0,79958.0,0.262637]
[1744121273133,0.10938525,79978.0,79958.0,0.359437]
[1744121273341,0.10938525,79978.0,79971.0,0.262593]
[1744121273488,0.012503,79976.0,79972.0,0.18836]
[1744121273894,0.10980241,79978.0,79976.0,0.250074]
[1744121274089,0.10980241,79978.0,79972.0,0.18836]
[1744121274450,0.26261,79967.0,79959.0,0.012506]
[1744121274646,0.012505,79965.0,79964.0,0.18828]
[1744121275970,0.012505,79965.0,79964.0,0.19228]
[1744121276171,0.012505,79965.0,79964.0,0.18828]
[1744121276315,0.013505,79967.0,79944.0,1.04008]
[1744121276316,0.012507,79952.0,79944.0,1.04008]
[1744121276513,0.012508,79946.0,79944.0,1.0493532]
[1744121276717,0.012509,79937.0,79935.0,0.18828]
[1744121276913,0.262708,79937.0,79935.0,0.18828]
[1744121277127,0.01251,79936.0,79935.0,0.18828]
[1744121278269,0.01251,79936.0,79935.0,0.19328]
[1744121278784,0.01251,79936.0,79935.0,0.18828]
[1744121278991,0.01251,79936.0,79925.0,0.061111]
[1744121278992,0.012511,79926.0,79925.0,0.18824]
[1744121279197,0.4118,79958.0,79925.0,0.18824]
[1744121279198,0.012509,79938.0,79925.0,0.31449864]
[1744121279534,0.250206,79934.0,79925.0,0.31449864]
[1744121279876,0.262741,79927.0,79925.0,0.31449864]
[1744121280122,0.25023,79927.0,79925.0,0.31449864]
[1744121280264,0.250197,79937.0,79929.0,0.012511]
[1744121280466,0.01251,79935.0,79930.0,0.12625864]
[1744121280679,0.012511,79926.0,79925.0,0.007]
[1744121280962,0.001,79934.0,79933.0,0.26474985]
[1744121281099,0.001,79934.0,79933.0,0.40351849]
[1744121281579,0.012508,79943.0,79933.0,0.12625864]
[1744121281781,0.001,79935.0,79934.0,0.31449864]
[1744121282041,0.001,79935.0,79934.0,0.32700864]
[1744121282215,0.001,79935.0,79934.0,0.34154949]
[1744121282582,0.25012,79962.0,79955.0,0.012507]
[1744121282786,0.012506,79957.0,79952.0,0.012507]
[1744121283025,0.00041716,79961.0,79954.0,0.250143]
[1744121283245,0.00041716,79961.0,79960.0,0.262631]
[1744121283457,0.00041716,79961.0,79960.0,0.40343049]
[1744121283658,0.00041716,79961.0,79960.0,0.12625864]
[1744121283985,0.00041716,79961.0,79958.0,0.1882]
[1744121284214,0.00041716,79961.0,79959.0,0.38889064]
[1744121284539,0.00041716,79961.0,79960.0,0.01454085]
[1744121284758,0.00041716,79961.0,79960.0,0.15330549]
[1744121285237,0.00041716,79961.0,79960.0,0.12625864]
[1744121285780,0.00141716,79961.0,79960.0,0.13225864]
[1744121285989,0.01392316,79961.0,79960.0,0.13225864]
[1744121286185,0.01392316,79961.0,79960.0,0.006]
[1744121286387,0.01392316,79961.0,79960.0,0.009]
[1744121286878,0.01492316,79961.0,79960.0,0.009]
[1744121287090,0.1411818,79961.0,79959.0,0.008]
[1744121287296,0.38888964,79960.0,79959.0,0.008]
[1744121287470,0.26271,79936.0,79928.0,0.012511]
[1744121287669,0.012506,79960.0,79950.0,0.250155]
[1744121287941,0.25016,79949.0,79942.0,0.012509]
[1744121288222,0.262667,79949.0,79943.0,0.12625864]
[1744121288454,0.002,79961.0,79921.0,0.0463]
[1744121288455,0.262733,79929.0,79921.0,0.0463]
[1744121288665,0.01251,79932.0,79928.0,0.250223]
[1744121288870,0.01251,79935.0,79929.0,0.13876964]
[1744121289130,0.12625864,79960.0,79924.0,0.200671]
[1744121289131,0.0128432,79968.0,79964.0,0.250111]
[1744121289346,0.012508,79943.0,79935.0,0.01251]
[1744121289537,0.26268,79946.0,79943.0,0.004]
[1744121289740,0.012507,79949.0,79944.0,0.012508]
[1744121289859,0.012508,79944.0,79939.0,0.250189]
[1744121290058,0.012508,79946.0,79940.0,0.12625864]
[1744121290262,0.012508,79946.0,79929.0,0.008]
[1744121290263,0.01251,79930.0,79929.0,0.008]
[1744121290471,0.012508,79943.0,79933.0,0.01251]
[1744121290700,0.26269,79942.0,79935.0,0.256201]
[1744121291047,0.250198,79937.0,79935.0,0.006]
[1744121291219,0.262728,79930.0,79929.0,0.008]
[1744121291378,0.84140485,79960.0,79940.0,0.250185]
[1744121291578,0.250185,79941.0,79932.0,0.01251]
[1744121291823,0.262719,79933.0,79932.0,0.12625864]
[1744121292028,0.262719,79933.0,79929.0,0.009]
[1744121292029,0.250218,79930.0,79929.0,0.009]
[1744121292235,0.262728,79930.0,79929.0,0.009]
[1744121292409,0.001,79930.0,79929.0,0.39799164]
[1744121292617,0.250127,79960.0,79955.0,0.250138]
[1744121292811,0.012508,79945.0,79938.0,0.012509]
[1744121293022,0.012507,79952.0,79945.0,0.012508]
[1744121293221,0.250192,79939.0,79934.0,0.250204]
[1744121293424,0.250192,79939.0,79932.0,0.4144]
[1744121293425,0.012509,79940.0,79932.0,0.42691]
[1744121293627,0.012509,79940.0,79936.0,0.250198]
[1744121293825,0.012509,79940.0,79933.0,0.12625864]
[1744121293826,0.012507,79952.0,79944.0,0.26268]
[1744121294055,0.012507,79955.0,79951.0,0.250153]
[1744121294251,0.012507,79954.0,79949.0,0.250156]
[1744121294476,0.012507,79952.0,79946.0,0.262675]
[1744121294696,0.012507,79953.0,79948.0,0.012508]
[1744121294904,0.01263207,79955.0,79948.0,0.012508]
[1744121294905,0.00012507,79955.0,79953.0,0.250145]
[1744121295098,0.00012507,79955.0,79954.0,0.57020741]
[1744121295234,0.00212507,79955.0,79954.0,0.56770649]
[1744121295451,0.00012507,79955.0,79954.0,0.56770649]
[1744121295879,0.0003382,79968.0,79967.0,0.262608]
[1744121296055,0.00075502,79968.0,79967.0,0.58728749]
[1744121296257,0.00075502,79968.0,79967.0,1.00168749]
[1744121296506,2e-08,79968.0,79967.0,1.15168749]
[1744121297136,2e-08,79968.0,79967.0,1.01129909]
[1744121297334,0.00100002,79968.0,79967.0,1.02029909]
[1744121297906,2e-08,79968.0,79967.0,1.01429909]
[1744121298110,0.00100002,79968.0,79967.0,1.02329909]
[1744121298305,0.00100002,79968.0,79967.0,1.02029909]
[1744121298517,0.00200002,79968.0,79967.0,1.02329909]
[1744121299528,0.000338,79976.0,79975.0,0.262581]
[1744121299793,0.000338,79976.0,79975.0,0.40338049]
[1744121299985,0.0003378,79993.0,79992.0,0.262526]
[1744121300185,0.0003378,79993.0,79992.0,0.58716549]
[1744121300326,0.0004628,79993.0,79992.0,0.58716549]
[1744121300933,0.0004628,79993.0,79976.0,0.476303]
[1744121300934,0.012501,79992.0,79976.0,0.476303]
[1744121301136,0.262556,79983.0,79977.0,0.13876164]
[1744121301453,0.012502,79981.0,79973.0,0.18384]
[1744121301680,0.250074,79977.0,79974.0,0.12625864]
[1744121301871,0.001,79993.0,79974.0,0.12625864]
[1744121301872,0.250076,79976.0,79974.0,0.12625864]
[1744121302024,0.250045,79986.0,79977.0,0.012503]
[1744121302230,0.262585,79974.0,79973.0,0.18384]
[1744121302430,0.262585,79974.0,79973.0,0.183965]
[1744121302630,0.262585,79974.0,79973.0,0.000125]
[1744121303058,0.250081,79974.0,79973.0,0.000125]
[1744121303287,0.262585,79974.0,79973.0,0.000125]
[1744121303906,0.262585,79974.0,79973.0,0.003125]
[1744121304082,0.38884364,79974.0,79973.0,0.003125]
[1744121304284,0.44963845,79974.0,79973.0,1e-06]
[1744121305075,0.45463845,79974.0,79973.0,1e-06]
[1744121305272,0.250197,79937.0,79935.0,0.0001689]
[1744121305519,0.012507,79951.0,79939.0,0.012509]
[1744121305717,0.012508,79944.0,79937.0,0.012509]
[1744121306072,0.012506,79956.0,79946.0,0.012508]
[1744121306229,0.250122,79961.0,79950.0,0.012507]
[1744121306426,0.012504,79969.0,79963.0,0.262617]
[1744121306590,0.004,79974.0,79952.0,0.250148]
[1744121306800,0.016504,79974.0,79965.0,0.012505]
[1744121306992,0.004,79974.0,79970.0,0.012504]
[1744121307196,0.012507,79955.0,79941.0,0.012509]
[1744121307393,0.262699,79940.0,79939.0,0.00942315]
[1744121307598,0.012508,79946.0,79935.0,0.0001689]
[1744121307804,0.012508,79944.0,79935.0,0.0001689]
[1744121308059,0.2627,79939.0,79937.0,0.005]
[1744121308244,0.012509,79941.0,79935.0,0.00058572]
[1744121308599,0.26271,79936.0,79935.0,0.00058572]
[1744121308799,0.2502,79936.0,79935.0,0.00058572]
[1744121309080,0.250191,79939.0,79935.0,0.00058572]
[1744121309220,0.2627,79939.0,79937.0,0.005]
[1744121309420,0.2627,79940.0,79935.0,0.00058572]
[1744121309617,0.001,79955.0,79951.0,0.012507]
[1744121309822,0.001,79955.0,79954.0,0.012507]
[1744121310027,0.250114,79964.0,79960.0,0.012506]
[1744121310274,0.250109,79965.0,79961.0,0.262625]
[1744121310689,0.250149,79953.0,79951.0,0.00936591]
[1744121310932,0.012505,79964.0,79956.0,0.012506]
[1744121311104,0.012505,79968.0,79958.0,0.012506]
[1744121311269,0.012507,79953.0,79943.0,0.012508]
[1744121311477,0.012507,79952.0,79946.0,0.262673]
[1744121311672,0.26266,79951.0,79947.0,0.12625864]
[1744121311879,0.012507,79950.0,79945.0,0.25017]
[1744121312087,0.01216841,79949.0,79945.0,0.25017]
[1744121312335,0.006,79965.0,79964.0,0.262617]
[1744121312499,0.262564,79981.0,79975.0,0.250075]
[1744121312696,0.012503,79977.0,79971.0,0.012504]
[1744121312946,0.012503,79979.0,79973.0,0.262586]
[1744121313152,0.012503,79979.0,79971.0,0.012504]
[1744121313153,0.250084,79973.0,79968.0,0.262604]
[1744121313357,0.005337,80016.0,79978.0,0.012503]
[1744121313517,0.25004,79987.0,79974.0,0.012504]
[1744121313689,0.250059,79981.0,79977.0,0.250071]
[1744121313893,0.250062,79980.0,79977.0,0.262574]
[1744121314095,0.012502,79982.0,79975.0,0.250076]
[1744121314344,0.012502,79981.0,79975.0,0.262579]
[1744121314703,0.250063,79980.0,79976.0,0.250073]
[1744121315125,0.262562,79981.0,79977.0,0.25007]
[1744121315351,0.25009,79971.0,79965.0,0.250107]
[1744121315552,0.250068,79978.0,79973.0,0.250083]
[1744121315765,0.012503,79976.0,79970.0,0.012504]
[1744121315972,0.250082,79974.0,79971.0,0.250089]
[1744121316260,0.250075,79976.0,79972.0,0.012504]
[1744121316434,0.250079,79975.0,79971.0,0.262594]
[1744121316640,0.18384,80001.0,79991.0,0.012501]
[1744121316842,0.249997,80001.0,79991.0,0.012501]
[1744121317040,0.250026,79992.0,79988.0,0.012501]
[1744121317250,0.250034,79989.0,79988.0,0.00942612]
[1744121317431,0.250038,79988.0,79984.0,0.250048]
[1744121317631,0.65710795,80000.0,79983.0,0.012502]
[1744121317993,0.250031,79990.0,79984.0,0.12625864]
[1744121318218,0.250031,79990.0,79985.0,0.012502]
[1744121318424,0.012502,79981.0,79974.0,0.012504]
[1744121318624,0.012506,79960.0,79949.0,0.012507]
[1744121318861,0.012506,79959.0,79950.0,0.12625864]
[1744121319037,0.012507,79951.0,79949.0,0.00919443]
[1744121319244,0.250122,79961.0,79954.0,0.262648]
[1744121319462,0.250122,79961.0,79946.0,0.00250156]
[1744121319463,0.250164,79948.0,79943.0,0.250177]
[1744121319692,0.012507,79952.0,79948.0,0.25016]
[1744121319936,0.250153,79951.0,79950.0,0.00041682]
[1744121320131,0.262653,79954.0,79950.0,0.00041682]
[1744121320265,0.26266,79951.0,79950.0,0.00041682]
[1744121320680,0.250151,79952.0,79950.0,0.00041682]
[1744121320887,0.250138,79956.0,79952.0,0.250148]
[1744121321130,0.012506,79957.0,79951.0,0.25015]
[1744121321500,0.012506,79957.0,79950.0,0.00041682]
[1744121321501,0.26266,79951.0,79950.0,0.00141682]
[1744121322487,0.250153,79951.0,79950.0,0.00141682]
[1744121322691,0.001,79951.0,79950.0,0.00141682]
[1744121322896,0.001,79951.0,79950.0,0.01292382]
[1744121323102,0.001,79951.0,79950.0,0.26307982]
[1744121323315,0.001,79951.0,79950.0,0.57205846]
[1744121323509,0.001,79951.0,79950.0,0.58659931]
[1744121324080,0.002,79951.0,79950.0,0.58959931]
[1744121324297,0.002,79951.0,79950.0,0.31239546]
[1744121324498,0.001,79951.0,79950.0,0.57205846]
[1744121324755,0.002,79951.0,79950.0,0.57505846]
[1744121325321,0.001,79951.0,79950.0,0.57505846]
[1744121325526,0.001,79951.0,79950.0,0.57705846]
[1744121325941,0.001,79951.0,79950.0,0.00341682]
[1744121326319,0.26266,79951.0,79950.0,0.00241682]
[1744121326499,0.250148,79953.0,79950.0,0.00241682]
[1744121326700,0.26366,79951.0,79950.0,0.01041682]
[1744121327136,0.001,79951.0,79950.0,0.00841682]
[1744121327313,0.25015,79952.0,79950.0,0.00841682]
[1744121327314,0.262645,79956.0,79950.0,0.00041682]
[1744121327517,0.012506,79960.0,79952.0,0.012507]
[1744121327725,0.250115,79963.0,79955.0,0.012507]
[1744121327920,0.250128,79959.0,79957.0,0.250134]
[1744121328110,0.250128,79959.0,79956.0,0.012506]
[1744121328111,0.012503,79979.0,79972.0,0.012504]
[1744121328320,0.012502,79982.0,79974.0,0.012504]
[1744121328557,0.25006,79981.0,79977.0,0.250071]
[1744121328743,0.250069,79978.0,79974.0,0.012504]
[1744121328978,0.250069,79978.0,79950.0,0.004]
[1744121328979,0.012504,79971.0,79956.0,0.250137]
[1744121329166,0.250132,79958.0,79955.0,0.25014]
[1744121329390,0.012506,79960.0,79951.0,0.012507]
[1744121329680,0.18276,79974.0,79969.0,0.012504]
[1744121329833,0.250107,79966.0,79963.0,0.250115]
[1744121330036,0.012504,79970.0,79965.0,0.012505]
[1744121330238,0.262599,79970.0,79966.0,0.250106]
[1744121330440,0.01954863,80056.0,79974.0,0.012504]
[1744121330441,0.0497,79996.0,79974.0,0.012504]
[1744121330644,0.0497,80007.0,79982.0,0.262558]
[1744121330844,0.012499,80003.0,79982.0,0.40335749]
[1744121331194,0.0203378,80009.0,79982.0,0.40335749]
[1744121331339,8e-07,79983.0,79982.0,0.41255827]
[1744121332135,0.00012568,79983.0,79982.0,0.41255827]
[1744121333405,0.00112568,79983.0,79982.0,0.83195827]
[1744121333603,0.00012568,79983.0,79982.0,0.83495827]
[1744121333802,0.00012568,79983.0,79982.0,1.01771827]
[1744121334017,6.8e-07,79983.0,79982.0,1.02871827]
[1744121335221,0.0203378,80009.0,80005.0,0.012499]
[1744121335424,0.262477,80007.0,80001.0,0.012499]
[1744121335673,0.02046275,80009.0,80008.0,0.012498]
[1744121335979,0.02046275,80009.0,80008.0,0.13875664]
[1744121336308,0.02046275,80009.0,80008.0,0.16528678]
[1744121337030,0.02046275,80009.0,80008.0,0.16278726]
[1744121337236,0.02046275,80009.0,80008.0,0.57968653]
[1744121337436,0.02046275,80009.0,80008.0,0.57718726]
[1744121338026,0.03296075,80009.0,80008.0,0.42388977]
[1744121338248,0.02046275,80009.0,79990.0,0.4144]
[1744121338454,0.02046275,80009.0,79992.0,0.250022]
[1744121338455,0.012499,80002.0,79992.0,0.250022]
[1744121338615,0.262501,80000.0,79995.0,0.250014]
[1744121338816,0.262501,80000.0,79996.0,0.12625864]
[1744121339185,0.250005,79999.0,79996.0,0.13553052]
[1744121339387,0.250006,79999.0,79996.0,0.00927188]
[1744121339575,0.012501,79993.0,79992.0,0.005]
[1744121339793,0.012502,79985.0,79980.0,0.250061]
[1744121339991,0.00999314,79985.0,79981.0,0.37631564]
[1744121340158,0.500239,80016.0,79985.0,0.012502]
[1744121340493,0.012499,80006.0,80001.0,0.262495]
[1744121340735,0.012499,80006.0,79998.0,0.0125]
[1744121340736,0.249988,80004.0,79998.0,0.0125]
[1744121340900,0.249988,80004.0,79997.0,0.250003]
[1744121340901,0.262558,79982.0,79968.0,0.15]
[1744121341107,0.262581,79975.0,79974.0,0.4144]
[1744121341328,0.262588,79973.0,79972.0,0.12007854]
[1744121341536,0.012503,79975.0,79972.0,0.12007854]
[1744121341738,0.012504,79973.0,79972.0,0.12007854]
[1744121341941,0.012502,79984.0,79972.0,0.24633718]
[1744121342082,1.249781,80014.0,79972.0,0.24633718]
[1744121342083,0.0125,79999.0,79990.0,0.012501]
[1744121342285,0.012502,79983.0,79975.0,0.01454085]
[1744121342628,0.012502,79982.0,79976.0,0.37633064]
[1744121342841,0.012503,79975.0,79974.0,0.4144]
[1744121343050,0.012504,79974.0,79973.0,0.00012488]
[1744121344391,0.13876264,79974.0,79973.0,8.8e-07]
[1744121344597,0.674371,79979.0,79973.0,0.00100088]
[1744121344804,0.012504,79974.0,79973.0,0.00100088]
[1744121345006,0.012504,79974.0,79973.0,8.8e-07]
[1744121345441,0.014504,79974.0,79973.0,0.00100088]
[1744121345644,0.002,79974.0,79973.0,0.01250488]
[1744121345870,0.002,79974.0,79973.0,0.15580526]
[1744121346071,0.004,79974.0,79973.0,0.15580526]
[1744121346287,0.012502,79983.0,79973.0,0.15430437]
[1744121346498,0.012503,79977.0,79973.0,0.00100088]
[1744121346750,0.252081,79974.0,79973.0,0.00100088]
[1744121346987,0.264585,79974.0,79973.0,8.8e-07]
[1744121347206,0.264585,79974.0,79973.0,0.00100088]
[1744121347702,0.43934364,79974.0,79973.0,0.00100088]
[1744121347935,0.43934364,79974.0,79973.0,8.8e-07]
[1744121348173,0.84914364,79974.0,79973.0,8.8e-07]
[1744121348395,0.85114364,79974.0,79973.0,8.8e-07]
[1744121348590,0.250168,79947.0,79943.0,0.262685]
[1744121349000,0.25017,79946.0,79943.0,0.250177]
[1744121349414,0.250158,79950.0,79945.0,0.012508]
[1744121349612,3.66,80280.0,79941.0,0.012509]
[1744121349613,0.25012,79962.0,79958.0,0.012506]
[1744121349818,0.4603,79974.0,79970.0,0.012504]
[1744121350018,0.250085,79973.0,79967.0,0.262606]
[1744121350222,0.012504,79973.0,79968.0,0.262604]
[1744121350429,0.007,79974.0,79957.0,0.012506]
[1744121350540,0.250114,79964.0,79960.0,0.012506]
[1744121350748,0.250114,79964.0,79951.0,0.012507]
[1744121350749,0.012503,79977.0,79970.0,0.012504]
[1744121350957,0.012501,79990.0,79976.0,0.012503]
[1744121351156,0.2501879,79980.0,79976.0,0.262575]
[1744121351381,0.0001249,79980.0,79977.0,0.250069]
[1744121351582,0.2626919,79980.0,79976.0,0.250073]
[1744121351790,0.250078,79975.0,79971.0,0.12625864]
[1744121351983,0.262569,79979.0,79973.0,0.012504]
[1744121352306,0.0081249,79980.0,79979.0,0.012503]
[1744121352502,0.0081249,79980.0,79979.0,0.15330249]
[1744121352715,0.0001249,79980.0,79979.0,0.15330249]
[1744121353279,0.0001249,79980.0,79979.0,0.15580271]
[1744121353475,9e-07,79980.0,79979.0,0.87430271]
[1744121353696,0.0003366,80015.0,80008.0,0.262473]
[1744121353902,0.012497,80014.0,80008.0,0.39077449]
[1744121354113,0.00046275,80009.0,80008.0,0.40327249]
[1744121354665,0.00046275,80009.0,80008.0,0.14079949]
[1744121354858,0.00046275,80009.0,80008.0,0.15329749]
[1744121355262,0.00046275,80009.0,80008.0,0.16273752]
[1744121355797,0.00046275,80009.0,80008.0,0.13569867]
[1744121356002,0.012499,80002.0,79994.0,0.18152]
[1744121356229,0.262485,80005.0,79996.0,0.262511]
[1744121356426,0.249995,80002.0,79998.0,0.0125]
[1744121356626,0.26249,80003.0,79999.0,0.12625864]
[1744121356787,0.26249,80003.0,79987.0,0.01454085]
[1744121356788,0.0125,79999.0,79998.0,0.00950944]
[1744121356986,0.262522,79993.0,79992.0,0.99056]
[1744121357211,0.25004,79988.0,79983.0,0.6644501]
[1744121357411,0.25004,79988.0,79984.0,0.12625864]
[1744121357684,0.250043,79987.0,79984.0,0.12625864]
[1744121357891,0.250046,79985.0,79984.0,0.12625864]
[1744121358128,0.012501,79990.0,79984.0,0.12625864]
[1744121358129,0.262526,79992.0,79986.0,0.012502]
[1744121358350,0.012501,79991.0,79983.0,0.4183991]
[1744121358553,0.262552,79984.0,79983.0,0.004]
[1744121358958,0.38881064,79984.0,79983.0,0.004]
[1744121359164,0.40045916,79984.0,79983.0,0.004]
[1744121359750,0.262574,79977.0,79965.0,0.00942783]
[1744121360411,0.262574,79977.0,79955.0,0.262646]
[1744121360542,0.262574,79977.0,79959.0,0.012506]
[1744121360872,0.262574,79977.0,79961.0,0.262626]
[1744121361084,0.262574,79977.0,79961.0,0.012506]
[1744121361249,0.250106,79966.0,79963.0,0.00918958]
[1744121361456,0.250106,79966.0,79962.0,0.250117]
[1744121361654,0.012504,79970.0,79964.0,0.012505]
[1744121361907,0.005,79977.0,79976.0,0.012503]
[1744121362056,0.005,79977.0,79976.0,0.12875905]
[1744121362264,0.021503,79977.0,79972.0,0.250087]
[1744121362468,0.009,79977.0,79976.0,0.012503]
[1744121362663,0.009,79977.0,79976.0,0.14126228]
[1744121363008,0.009,79977.0,79973.0,0.012504]
[1744121363009,0.004,79977.0,79973.0,0.012504]
[1744121363206,0.004,79977.0,79976.0,0.012503]
[1744121363437,0.004,79977.0,79975.0,0.26258]
[1744121363640,0.012503,79980.0,79977.0,0.250071]
[1744121363793,0.012503,79979.0,79975.0,0.12625864]
[1744121363990,0.001,79977.0,79976.0,0.012503]
[1744121364202,0.001,79977.0,79976.0,0.15580311]
[1744121364403,0.012502,79987.0,79981.0,0.250057]
[1744121364732,0.012501,79989.0,79984.0,0.262552]
[1744121364963,0.002,79979.0,79976.0,0.250074]
[1744121365169,0.002,79979.0,79961.0,0.414524]
[1744121365381,0.262623,79962.0,79961.0,0.0001249]
[1744121365594,0.012505,79962.0,79961.0,0.0001249]
[1744121366000,0.012502,79983.0,79977.0,0.012503]
[1744121366304,0.012503,79975.0,79968.0,0.012505]
[1744121366461,0.012503,79975.0,79967.0,0.250102]
[1744121366462,0.26259,79973.0,79967.0,0.250102]
[1744121366663,0.012503,79977.0,79967.0,0.250102]
[1744121366664,0.013503,79979.0,79969.0,0.012504]
[1744121366870,0.262582,79975.0,79970.0,0.262597]
[1744121367065,0.250082,79974.0,79969.0,0.250096]
[1744121367271,0.001,79979.0,79978.0,0.250068]
[1744121367621,0.001,79979.0,79978.0,0.38882964]
[1744121367755,0.012499,80001.0,79987.0,0.012502]
[1744121367950,0.250029,79991.0,79987.0,0.012502]
[1744121368150,0.250021,79993.0,79988.0,0.262538]
[1744121368351,0.012501,79991.0,79987.0,0.25004]
[1744121368555,0.250031,79990.0,79986.0,0.25004]
[1744121368760,0.250031,79990.0,79981.0,0.194022]
[1744121368761,0.012501,79988.0,79981.0,0.194022]
[1744121368964,0.250059,79981.0,79979.0,0.02329146]
[1744121369164,0.262565,79980.0,79979.0,0.02329146]
[1744121369397,0.262588,79973.0,79972.0,0.0001249]
[1744121371178,0.26252,79994.0,79987.0,0.012502]
[1744121371379,0.012504,79974.0,79972.0,0.0011249]
[1744121371591,0.270588,79973.0,79972.0,0.0021249]
[1744121372010,0.020504,79973.0,79972.0,0.0011249]
[1744121372237,0.270588,79973.0,79972.0,0.0011249]
[1744121372610,0.262588,79973.0,79972.0,0.0001249]
[1744121373267,0.26258,79976.0,79972.0,0.0001249]
[1744121373268,0.83862795,80000.0,79979.0,0.012503]
[1744121373473,0.83862795,80000.0,79987.0,0.001]
[1744121373474,0.262538,79988.0,79987.0,0.001]
[1744121373881,0.262588,79973.0,79972.0,0.0001249]
[1744121374291,0.265588,79973.0,79972.0,0.0001249]
[1744121375607,0.269588,79973.0,79972.0,0.0001249]
[1744121377324,0.269588,79973.0,79972.0,0.2627159]
[1744121377325,0.007,79973.0,79972.0,0.2627159]
[1744121377624,0.007,79973.0,79972.0,0.38897454]
[1744121377995,0.269588,79973.0,79972.0,0.0001249]
[1744121379909,0.007,79973.0,79972.0,0.38897454]
[1744121380108,0.007,79973.0,79972.0,0.42682866]
[1744121380310,0.007,79973.0,79972.0,0.84122776]
[1744121380517,0.007,79973.0,79972.0,0.414524]
[1744121380737,0.012503,79977.0,79972.0,0.414524]
[1744121380940,0.012503,79979.0,79972.0,0.414524]
[1744121380941,0.012503,79979.0,79973.0,0.262588]
[1744121381139,0.012503,79979.0,79974.0,0.250081]
[1744121381140,0.012503,79978.0,79974.0,0.250081]
[1744121381338,0.250074,79977.0,79974.0,0.250081]
[1744121381540,0.65710795,80000.0,79986.0,0.012502]
[1744121381749,0.012501,79991.0,79986.0,0.250041]
[1744121382037,0.250065,79980.0,79977.0,0.250071]